bitfinex-derivatives/quotes_ETHF0:USTF0_20250807
["timestamp","ask_amount","ask_price","bid_price","bid_amount"]
[1754592004590,40.8,3820.4,3820.3,2.50653]
[1754592006686,41.2555,3820.4,3820.3,2.50653]
[1754592008690,40.8,3820.4,3820.3,2.50653]
[1754592010094,41.2555,3820.4,3820.3,2.50653]
[1754592010294,41.8767,3820.4,3820.3,2.50653]
[1754592011594,40.8,3820.4,3820.3,2.50653]
[1754592011798,41.2555,3820.4,3820.3,2.50653]
[1754592012294,40.8,3820.4,3820.3,2.50653]
[1754592014402,41.2543,3820.4,3820.3,2.50653]
[1754592014598,41.8906,3820.4,3820.3,2.50653]
[1754592016301,41.2543,3820.4,3820.3,2.50653]
[1754592016601,41.8906,3820.4,3820.3,2.05563]
[1754592016795,41.8906,3820.4,3820.3,2.50073]
[1754592017192,41.8906,3820.4,3819.7,1.30877]
[1754592017193,1.8513,3820.1,3820.0,0.52347]
[1754592017498,1.8513,3820.1,3820.0,2.45907]
[1754592017698,1.8513,3820.1,3820.0,20.30907]
[1754592019993,0.5174,3820.1,3820.0,20.30907]
[1754592020198,0.9717,3820.1,3820.0,20.30907]
[1754592020400,41.1746,3820.4,3820.3,1.29113]
[1754592020599,41.8879,3820.4,3820.3,20.30903]
[1754592021700,41.8879,3820.4,3820.3,0.52343]
[1754592021895,41.8879,3820.4,3820.3,18.37343]
[1754592022398,41.8879,3820.4,3820.3,18.73563]
[1754592023506,41.8879,3820.4,3820.3,18.37343]
[1754592024401,41.8879,3820.4,3820.3,0.52343]
[1754592024899,0.52343,3820.3,3820.2,0.52344]
[1754592025105,0.7607,3819.8,3819.7,0.52351]
[1754592025306,1.8486,3819.8,3819.7,18.37151]
[1754592025497,1.1291,3819.8,3819.7,0.52351]
[1754592025700,1.366,3819.8,3819.7,0.52351]
[1754592026707,42.166,3819.8,3819.7,1.24631]
[1754592027404,42.166,3819.8,3819.7,1.47781]
[1754592028507,42.166,3819.8,3819.7,1.24631]
[1754592028909,42.166,3819.8,3819.7,0.3622]
[1754592029406,1.3102,3819.5,3819.4,18.8023]
[1754592029614,0.52357,3819.4,3819.2,0.7228]
[1754592029909,1.04097,3819.4,3819.3,1.24636]
[1754592030206,42.1102,3819.4,3819.3,1.24636]
[1754592030609,42.1102,3819.4,3819.3,2.01406]
[1754592030811,41.7717,3819.4,3819.3,2.45916]
[1754592031805,42.1102,3819.4,3819.3,2.45916]
[1754592032206,41.7717,3819.4,3819.3,2.45916]
[1754592032401,41.0805,3819.4,3819.3,2.45916]
[1754592032707,41.5348,3819.4,3819.3,2.45916]
[1754592033510,41.8733,3819.4,3819.3,2.45916]
[1754592033910,41.8733,3819.4,3819.3,2.01406]
[1754592034407,1.04097,3819.3,3819.2,0.52357]
[1754592034607,1.3102,3819.3,3819.2,2.45917]
[1754592035008,0.9717,3819.3,3819.2,2.45917]
[1754592035513,0.5174,3819.3,3819.2,2.45917]
[1754592035716,0.9717,3819.3,3819.2,2.45917]
[1754592038110,40.8,3819.4,3819.2,2.45917]
[1754592038313,40.8,3819.4,3819.3,1.1679]
[1754592038512,40.8,3819.4,3819.3,1.9356]
[1754592042416,0.9717,3820.2,3820.1,2.45906]
[1754592042612,19.34209,3820.6,3820.5,2.45901]
[1754592043110,42.29509,3820.6,3820.5,2.45901]
[1754592043317,42.62989,3820.6,3820.5,2.45901]
[1754592043515,42.62989,3820.6,3820.5,1.1916]
[1754592043814,42.62989,3820.6,3820.5,0.7228]
[1754592044216,1.2989,3820.1,3820.0,1.97997]
[1754592044612,1.2989,3820.1,3820.0,1.4565]
[1754592045614,1.2989,3820.1,3820.0,0.9322]
[1754592045820,1.0475,3819.9,3819.8,1.45569]
[1754592046021,1.8224,3819.9,3819.8,1.70049]
[1754592046316,42.6224,3819.9,3819.8,2.12609]
[1754592046613,42.0989,3819.9,3819.8,2.40559]
[1754592046819,40.8,3819.9,3819.8,2.40559]
[1754592047425,41.2401,3819.9,3819.8,2.40559]
[1754592049720,40.8,3819.9,3819.8,2.40559]
[1754592052316,41.2401,3819.9,3819.8,2.40559]
[1754592056924,0.3348,3819.8,3819.6,0.52352]
[1754592057130,1.2989,3819.7,3819.6,0.87772]
[1754592057630,1.2989,3819.7,3819.6,1.22662]
[1754592057930,1.2989,3819.7,3819.6,2.40562]
[1754592058632,1.2989,3819.7,3819.6,1.70052]
[1754592060628,41.2401,3819.9,3819.8,2.4056]
[1754592061131,41.5749,3819.9,3819.8,2.4056]
[1754592062528,0.3366,3818.9,3818.8,1.5332]
[1754592062734,0.3366,3818.9,3818.8,2.05684]
[1754592063032,0.7694,3819.1,3819.0,2.05681]
[1754592063228,41.5694,3819.1,3819.0,2.05681]
[1754592064531,41.5694,3819.1,3819.0,2.40571]
[1754592064832,41.1907,3819.1,3819.0,2.40571]
[1754592066228,41.1907,3819.1,3819.0,20.24871]
[1754592067532,40.8,3819.1,3819.0,20.24871]
[1754592067735,0.99812,3819.7,3819.6,1.653]
[1754592067936,0.99812,3819.7,3819.6,1.8821]
[1754592068135,41.0466,3819.7,3819.6,1.8821]
[1754592069337,40.8,3819.7,3819.6,1.8821]
[1754592073941,0.2462,3820.3,3820.2,2.44495]
[1754592074336,41.0462,3820.3,3820.2,2.44495]
[1754592074538,41.29555127,3820.3,3820.2,2.44495]
[1754592075237,41.0462,3820.3,3820.2,2.44495]
[1754592075447,0.2462,3820.0,3819.6,17.842]
[1754592075640,0.2462,3820.0,3819.9,1.5677]
[1754592075940,40.8,3820.3,3820.2,1.9215]
[1754592077037,40.8,3820.3,3820.2,2.44495]
[1754592078139,41.2733311,3820.3,3820.2,1.22435]
[1754592078735,41.2733311,3820.3,3820.2,1.71055]
[1754592078942,41.0239,3820.3,3820.2,2.44495]
[1754592080448,41.27341787,3820.3,3820.2,2.44495]
[1754592081050,41.27341787,3820.3,3820.2,1.4669]
[1754592081248,41.27341787,3820.3,3820.2,0.9419]
[1754592081650,41.27341787,3820.3,3820.2,1.9215]
[1754592082442,41.27341787,3820.3,3820.2,1.4669]
[1754592082649,41.27341787,3820.3,3820.2,0.7009]
[1754592083450,0.76965,3820.2,3820.1,0.52345]
[1754592083638,0.4701,3820.2,3820.1,1.22435]
[1754592083844,0.4701,3820.2,3820.1,1.91995]
[1754592084148,0.71982824,3820.2,3820.1,1.91995]
[1754592084750,0.49592824,3820.2,3820.1,0.87055]
[1754592084959,0.71985797,3820.2,3820.1,1.22435]
[1754592085160,0.4701,3820.2,3820.1,1.22435]
[1754592085460,18.3091,3820.2,3820.1,1.22435]
[1754592085959,18.3091,3820.2,3820.1,1.67895]
[1754592086260,0.4701,3819.8,3819.7,1.9215]
[1754592086852,0.2462,3819.8,3819.7,0.9419]
[1754592087160,0.99361,3819.7,3819.6,1.22443]
[1754592087863,41.79361,3819.7,3819.6,1.22443]
[1754592088054,41.79361,3819.7,3819.6,2.44503]
[1754592088257,41.2701,3819.7,3819.6,2.44503]
[1754592088558,41.0462,3819.7,3819.6,2.44503]
[1754592094954,40.8,3819.7,3819.6,2.44503]
[1754592104462,41.0113,3819.7,3819.6,1.99043]
[1754592105171,41.0113,3819.7,3819.6,2.44063]
[1754592105872,40.8,3819.7,3819.6,2.44063]
[1754592111064,41.0113,3819.7,3819.6,2.44063]
[1754592112474,40.8,3819.7,3819.6,2.44063]
[1754592123476,40.8,3819.7,3819.6,20.27463]
[1754592123676,41.0113,3819.7,3819.6,20.27463]
[1754592124085,40.8,3819.7,3819.6,20.27463]
[1754592127382,40.8,3819.7,3819.6,18.99113]
[1754592127685,40.8,3819.7,3819.6,19.07053]
[1754592127686,41.0113,3819.7,3819.6,19.07053]
[1754592127883,41.0113,3819.7,3819.6,19.98943]
[1754592128086,41.0113,3819.7,3819.6,20.26843]
[1754592128388,40.8,3819.7,3819.6,20.26843]
[1754592135192,40.9986,3819.7,3819.6,20.26843]
[1754592135392,40.9986,3819.7,3819.6,19.31423]
[1754592135693,40.9986,3819.7,3819.6,20.29343]
[1754592136089,40.8,3819.7,3819.6,20.29343]
[1754592136589,40.9986,3819.7,3819.6,20.29343]
[1754592136788,40.9986,3819.7,3819.6,18.71133]
[1754592136992,40.9986,3819.7,3819.6,19.04223]
[1754592137791,40.9986,3819.7,3819.6,19.48673]
[1754592138094,40.9986,3819.7,3819.6,19.96033]
[1754592138296,40.9986,3819.7,3819.6,19.27423]
[1754592138589,40.9986,3819.7,3819.6,18.71133]
[1754592138794,40.9986,3819.7,3819.6,17.834]
[1754592138990,40.9986,3819.7,3819.6,18.5043]
[1754592139999,40.9986,3819.7,3819.6,18.9488]
[1754592140301,40.9986,3819.7,3819.6,19.7155]
[1754592140796,40.9986,3819.7,3819.6,1.8815]
[1754592140996,41.52213,3819.7,3819.6,0.3309]
[1754592141204,41.52213,3819.7,3819.6,0.6703]
[1754592141400,0.4315,3819.6,3819.5,0.52353]
[1754592141901,0.4315,3819.6,3819.5,1.19383]
[1754592142293,0.4315,3819.6,3819.5,0.52353]
[1754592142490,0.4315,3819.6,3819.5,1.19383]
[1754592142890,0.4315,3819.6,3819.5,1.63833]
[1754592143094,0.4315,3819.6,3819.5,2.40503]
[1754592143497,0.2329,3819.6,3819.5,2.40503]
[1754592145402,40.8,3819.7,3819.5,2.40503]
[1754592145599,40.8,3819.7,3819.6,19.7115]
[1754592146900,18.58635,3820.2,3820.1,1.04856]
[1754592147107,18.80065635,3820.2,3820.1,2.40496]
[1754592147402,59.60065635,3820.2,3820.1,2.40496]
[1754592147604,41.77065635,3820.2,3820.1,2.40496]
[1754592147803,59.60065635,3820.2,3820.1,2.40496]
[1754592148204,41.77065635,3820.2,3820.1,2.40496]
[1754592148498,41.77070014,3820.2,3820.1,2.40496]
[1754592148703,41.96380014,3820.2,3820.1,2.40496]
[1754592148899,41.96380014,3820.2,3820.1,1.42576]
[1754592149103,41.96380014,3820.2,3820.1,1.19376]
[1754592151207,41.96380014,3820.2,3820.1,0.6703]
[1754592151409,0.426,3819.9,3819.8,0.3309]
[1754592151707,18.254,3819.9,3819.8,0.6703]
[1754592151902,0.426,3819.9,3819.8,1.3468]
[1754592152101,0.426,3819.9,3819.8,2.40499]
[1754592152301,0.2329,3819.9,3819.8,2.40499]
[1754592152503,18.0609,3820.1,3820.0,2.40497]
[1754592152809,18.79868032,3820.1,3820.0,2.40497]
[1754592154502,0.97068032,3820.1,3820.0,2.40497]
[1754592154907,0.2329,3820.1,3820.0,2.40497]
[1754592156403,40.8,3820.2,3820.0,2.40497]
[1754592156603,40.8,3820.2,3820.1,1.8815]
[1754592175019,40.986,3820.2,3820.1,1.8815]
[1754592175218,58.809,3820.2,3820.1,1.437]
[1754592175413,59.54643811,3820.2,3820.1,1.437]
[1754592175618,58.809,3820.2,3820.1,1.437]
[1754592175915,58.809,3820.2,3820.1,1.8789]
[1754592176214,59.54643751,3820.2,3820.1,1.8789]
[1754592180024,59.54643751,3820.2,3820.1,0.3394]
[1754592180223,59.54643751,3820.2,3820.1,0.6626]
[1754592181022,59.54643751,3820.2,3820.1,1.8447]
[1754592181610,59.54643751,3820.2,3820.1,1.1044]
[1754592181816,0.4093,3820.1,3820.0,1.19187]
[1754592182121,0.2233,3820.1,3820.0,2.37397]
[1754592183317,0.4093,3820.1,3820.0,1.4086]
[1754592183521,0.4093,3820.1,3820.0,1.8505]
[1754592184022,0.4093,3820.1,3820.0,1.4086]
[1754592184220,0.4093,3820.1,3820.0,1.8505]
[1754592185322,0.2233,3820.1,3820.0,1.8505]
[1754592185518,40.8,3820.2,3820.1,0.52346]
[1754592185723,59.35756057,3820.2,3820.1,2.37396]
[1754592187120,59.60595294,3820.2,3820.1,2.37396]
[1754592187514,41.78595294,3820.2,3820.1,2.37396]
[1754592190722,41.53756057,3820.2,3820.1,2.37396]
[1754592191030,41.78596534,3820.2,3820.1,2.37396]
[1754592193431,41.78596534,3820.2,3820.1,1.8505]
[1754592193825,41.78759599,3820.2,3820.1,1.8505]
[1754592196134,41.78759599,3820.2,3820.1,1.4086]
[1754592196335,41.96129599,3820.2,3820.1,1.8393]
[1754592196834,41.78759599,3820.2,3820.1,1.8393]
[1754592197134,0.2168,3819.8,3819.7,1.2702]
[1754592197336,0.2168,3819.8,3819.7,2.359]
[1754592198035,0.74031,3819.8,3819.7,2.359]
[1754592198833,0.74031,3819.8,3819.7,1.8355]
[1754592199133,0.2168,3819.1,3819.0,1.92841]
[1754592199325,0.2168,3819.1,3819.0,2.35911]
[1754592199528,41.0168,3819.1,3819.0,2.35911]
[1754592200436,40.8,3819.1,3819.0,2.35911]
[1754592202031,40.8,3819.1,3819.0,1.4048]
[1754592202239,0.52366,3818.7,3818.6,0.551]
[1754592202431,0.74046,3818.7,3818.6,1.8355]
[1754592202735,0.91416,3818.7,3818.6,1.8355]
[1754592202938,0.74049,3818.4,3818.3,0.37604]
[1754592203128,18.73219,3818.4,3818.3,0.37604]
[1754592203331,59.53219,3818.4,3818.3,0.37604]
[1754592204930,59.53219,3818.4,3818.3,0.69814]
[1754592206535,59.53219,3818.4,3818.3,1.03414]
[1754592207236,59.53219,3818.4,3818.3,0.37604]
[1754592207542,58.619,3818.4,3818.3,2.21154]
[1754592211240,58.7927,3818.4,3818.3,2.21154]
[1754592211437,58.7927,3818.4,3818.3,1.03414]
[1754592211632,58.7927,3818.4,3818.3,2.21154]
[1754592212141,58.619,3818.4,3818.3,2.21154]
[1754592215641,40.8,3818.4,3818.3,2.21154]
[1754592215838,58.621,3818.4,3818.3,2.21154]
[1754592221750,40.8,3818.4,3818.3,2.21154]
[1754592221945,58.621,3818.4,3818.3,2.21154]
[1754592222144,58.621,3818.4,3818.3,0.37604]
[1754592222342,58.7842,3818.4,3818.3,2.21154]
[1754592222548,58.621,3818.4,3818.3,2.21154]
[1754592222845,40.8,3818.4,3818.3,2.21154]
[1754592223447,17.821,3818.9,3818.8,1.05044]
[1754592223645,0.52362,3819.0,3818.8,1.05044]
[1754592223646,0.52362,3819.0,3818.9,1.8411]
[1754592223847,0.95392,3819.0,3818.9,1.8411]
[1754592224452,41.75392,3819.0,3818.9,1.8411]
[1754592230151,41.32362,3819.0,3818.9,1.8411]
[1754592230357,40.8,3819.0,3818.9,1.8411]
[1754592235174,41.2303,3819.0,3818.9,1.8411]
[1754592235366,40.8,3819.0,3818.9,1.8411]
[1754592238866,0.4303,3818.9,3818.1,0.6456]
[1754592239069,0.7179,3818.9,3818.8,1.0997]
[1754592239366,0.7179,3818.9,3818.8,1.3969]
[1754592240277,0.7179,3818.9,3818.8,1.0997]
[1754592240470,0.7179,3818.9,3818.8,0.6456]
[1754592240775,0.7179,3818.9,3818.8,1.3969]
[1754592240979,0.7179,3818.9,3818.8,1.8411]
[1754592241679,40.8,3819.0,3818.9,1.27492]
[1754592241880,40.8,3819.0,3818.9,2.36472]
[1754592242581,41.2303,3819.0,3818.9,2.36472]
[1754592243582,41.2303,3819.0,3818.9,1.92052]
[1754592244187,41.2303,3819.0,3818.9,0.3162]
[1754592244482,59.0573,3819.0,3818.9,0.3162]
[1754592245478,59.0573,3819.0,3818.9,1.8411]
[1754592245782,40.8,3819.0,3818.9,1.8411]
[1754592247677,41.2303,3819.0,3818.9,1.8411]
[1754592249678,41.2303,3819.0,3818.9,1.3969]
[1754592252787,41.2303,3819.0,3818.9,1.8411]
[1754592257392,59.0533,3819.0,3818.9,1.3969]
[1754592257591,0.2889,3818.9,3818.7,0.52364]
[1754592257790,0.7188,3818.9,3818.8,0.6689]
[1754592258983,0.7188,3818.9,3818.8,1.3995]
[1754592259194,0.7188,3818.9,3818.8,1.8313]
[1754592260295,0.7188,3818.9,3818.8,1.3995]
[1754592260698,0.7188,3818.9,3818.8,1.1151]
[1754592260899,18.5378,3818.9,3818.8,0.3234]
[1754592261098,18.5378,3818.9,3818.5,0.3455]
[1754592261099,0.2889,3818.6,3818.5,0.3455]
[1754592261287,0.7188,3818.6,3818.5,0.3455]
[1754592261787,42.04246,3818.6,3818.5,0.6689]
[1754592262593,42.04246,3818.6,3817.5,1.30952]
[1754592262594,0.4299,3817.8,3817.5,1.2235]
[1754592262901,0.7188,3817.6,3817.5,2.35511]
[1754592263592,41.5188,3817.6,3817.5,2.35511]
[1754592263994,41.0889,3817.6,3817.5,2.35511]
[1754592264593,41.5188,3817.6,3817.5,2.35511]
[1754592266999,41.5188,3817.6,3817.5,1.3995]
[1754592267298,40.8,3817.6,3817.5,1.1151]
[1754592268295,41.5188,3817.6,3817.5,1.8313]
[1754592270601,41.5188,3817.6,3817.5,1.3995]
[1754592270797,40.8,3817.6,3817.5,1.1151]
[1754592271101,0.7188,3817.4,3817.3,0.68775]
[1754592273595,41.5188,3817.4,3817.0,0.3234]
[1754592273800,0.2889,3817.1,3817.0,0.3234]
[1754592274009,19.06867,3817.1,3817.0,0.6689]
[1754592274800,19.06867,3817.1,3817.0,1.8313]
[1754592276207,19.06867,3817.1,3817.0,1.3995]
[1754592277103,19.06867,3817.1,3817.0,1.8313]
[1754592278610,19.06867,3817.1,3817.0,1.3995]
[1754592279005,19.06867,3817.1,3817.0,0.6689]
[1754592279306,0.524,3816.2,3815.9,0.52403]
[1754592279500,1.4607,3816.2,3816.1,1.1624]
[1754592279705,42.3114,3816.2,3816.1,1.1624]
[1754592280016,42.2607,3816.2,3816.1,1.1624]
[1754592280207,42.3114,3816.2,3816.1,1.1624]
[1754592280404,42.2607,3816.2,3816.1,0.7306]
[1754592280604,42.3114,3816.2,3816.1,0.9341]
[1754592280801,42.6336,3816.2,3816.1,1.1624]
[1754592281005,0.2889,3815.8,3815.7,1.68645]
[1754592281207,0.7188,3815.8,3815.7,2.35535]
[1754592281611,0.7188,3815.8,3815.7,1.8313]
[1754592281811,0.9367,3815.8,3815.7,1.8313]
[1754592282114,0.2889,3815.8,3815.7,1.8313]
[1754592282611,0.52404,3815.9,3815.7,1.25465]
[1754592282811,0.52404,3815.9,3815.7,0.7306]
[1754592282812,41.2299,3815.8,3815.7,0.7306]
[1754592283007,41.28,3815.8,3815.7,0.7306]
[1754592283200,1.3809,3815.7,3815.6,0.4456]
[1754592283905,1.90496,3815.7,3815.6,1.0887]
[1754592284105,1.90496,3815.7,3815.6,0.3245]
[1754592284317,1.90496,3815.7,3815.2,0.52412]
[1754592284318,0.82592,3815.3,3815.2,1.484]
[1754592284507,1.24452,3815.3,3815.2,1.8026]
[1754592284708,42.04452,3815.3,3815.2,1.8026]
[1754592286514,41.1018,3815.3,3815.2,1.8026]
[1754592287610,41.5204,3815.3,3815.2,1.8026]
[1754592289718,41.5204,3815.3,3815.0,0.7471]
[1754592289719,0.81834,3815.1,3815.0,0.7471]
[1754592289911,1.58884,3815.1,3815.0,1.8026]
[1754592290106,1.0146,3815.1,3815.0,1.8026]
[1754592290318,40.8,3815.3,3815.2,1.8026]
[1754592295914,41.2186,3815.3,3815.2,1.8026]
[1754592300311,40.8,3815.3,3815.2,1.8026]
[1754592303014,1.3726,3815.2,3815.1,1.8026]
[1754592304120,2.30616,3815.2,3814.7,0.4124]
[1754592304320,1.89678,3814.8,3814.7,1.0887]
[1754592305921,42.69678,3814.8,3814.7,0.6431]
[1754592306316,42.68767,3814.8,3814.1,0.6431]
[1754592306521,1.0564,3814.2,3814.1,1.0555]
[1754592306724,1.3726,3814.2,3814.1,1.8026]
[1754592307124,42.1726,3814.2,3814.1,1.8026]
[1754592307827,41.8564,3814.2,3814.1,1.8026]
[1754592308629,42.1726,3814.2,3814.1,1.0887]
[1754592309029,42.1726,3814.2,3814.1,1.8026]
[1754592309329,41.8564,3814.2,3814.1,1.8026]
[1754592310030,41.7345,3814.2,3814.1,1.8026]
[1754592310222,41.1018,3814.2,3814.1,1.8026]
[1754592310427,40.8,3814.2,3814.1,1.8026]
[1754592310626,0.52419,3814.8,3814.6,1.27131]
[1754592310831,1.68489,3814.8,3814.7,1.8026]
[1754592311025,1.501,3814.8,3814.7,1.8026]
[1754592311229,2.23484451,3814.8,3814.7,1.8026]
[1754592311427,2.23483838,3814.8,3814.7,1.8026]
[1754592311628,43.03483838,3814.8,3814.7,1.8026]
[1754592313631,41.53383838,3814.8,3814.7,1.8026]
[1754592314132,40.8,3814.8,3814.7,1.8026]
[1754592316935,1.1455,3815.2,3815.1,1.25074]
[1754592317127,1.1455,3815.2,3815.1,2.30914]
[1754592317322,41.9455,3815.2,3815.1,2.30914]
[1754592318633,42.2567,3815.2,3815.1,2.30914]
[1754592320535,42.2567,3815.2,3815.1,0.52414]
[1754592320837,42.5688,3815.2,3815.1,0.52414]
[1754592321236,42.5688,3815.2,3815.1,1.05404]
[1754592321435,42.5688,3815.2,3815.1,2.30914]
[1754592322336,42.2567,3815.2,3815.1,2.30914]
[1754592323537,40.8,3815.2,3815.1,2.30914]
[1754592327255,1.4567,3815.8,3815.7,2.30906]
[1754592327553,1.7688,3815.8,3815.7,0.84356]
[1754592327754,42.5688,3815.8,3815.7,0.84356]
[1754592328757,42.5688,3815.8,3815.7,1.28406]
[1754592328946,42.5688,3815.8,3815.7,1.59266]
[1754592329151,42.5688,3815.8,3815.7,2.30906]
[1754592329556,42.2567,3815.8,3815.7,2.30906]
[1754592329755,41.0914,3815.8,3815.7,2.30906]
[1754592330257,1.1455,3816.1,3816.0,1.25062]
[1754592330556,1.1455,3816.1,3816.0,2.30902]
[1754592330758,42.2567,3816.1,3816.0,2.30902]
[1754592331058,42.5688,3816.1,3816.0,1.87872]
[1754592331557,0.7297,3816.0,3815.5,0.6281]
[1754592331756,1.7688,3815.6,3815.5,1.59269]
[1754592332454,1.4567,3815.6,3815.5,1.28409]
[1754592332761,1.7688,3815.6,3815.5,2.30909]
[1754592333158,0.7099,3815.6,3815.5,2.30909]
[1754592333458,0.9228,3815.6,3815.5,2.30909]
[1754592333659,1.4567,3815.6,3815.5,2.30909]
[1754592335056,1.7688,3815.6,3815.5,1.59269]
[1754592335257,1.7688,3815.6,3815.5,1.06489]
[1754592335758,1.7688,3815.6,3815.5,0.52409]
[1754592335954,0.74681,3815.4,3815.3,0.52411]
[1754592336159,2.29291,3815.4,3815.3,0.52411]
[1754592336463,1.25113,3815.3,3815.2,0.52412]
[1754592336667,2.29293,3815.3,3815.2,0.84362]
[1754592337060,1.7688,3815.3,3815.2,0.84362]
[1754592339668,1.7688,3815.3,3815.2,0.3195]
[1754592339971,1.4567,3814.8,3814.7,1.5594]
[1754592340271,1.7688,3814.8,3814.7,2.3092]
[1754592341260,1.7688,3814.8,3814.7,0.3195]
[1754592341770,1.7688,3814.8,3814.5,0.84372]
[1754592341771,0.727,3814.6,3814.5,0.84372]
[1754592341964,1.7688,3814.6,3814.5,1.06502]
[1754592342267,1.7688,3814.6,3814.5,0.84372]
[1754592342568,1.7688,3814.6,3814.5,1.59282]
[1754592342868,1.1455,3814.6,3814.5,2.30922]
[1754592343069,40.8,3814.8,3814.7,2.3275]
[1754592343263,0.9336,3815.3,3815.2,2.32743]
[1754592343488,0.2843,3815.3,3815.2,2.32743]
[1754592343657,41.0843,3815.3,3815.2,2.32743]
[1754592345367,41.5315,3815.3,3815.2,2.32743]
[1754592345584,41.5315,3815.3,3815.2,5.53523]
[1754592345763,41.0843,3815.3,3815.2,5.53523]
[1754592345964,40.8,3815.3,3815.2,5.53523]
[1754592346163,1.4455,3816.0,3815.9,1.55213]
[1754592346363,1.7459,3816.0,3815.9,5.08883]
[1754592346563,42.5459,3816.0,3815.9,5.08883]
[1754592346765,43.28151526,3816.0,3815.9,5.08883]
[1754592347967,42.98111526,3816.0,3815.9,5.53513]
[1754592348369,41.81991526,3816.0,3815.9,5.53513]
[1754592350473,41.0843,3816.0,3815.9,5.53513]
[1754592350675,41.5315,3816.0,3815.9,5.53513]
[1754592351066,42.57320486,3816.0,3815.9,5.53513]
[1754592351578,42.57322363,3816.0,3815.9,5.53513]
[1754592351972,42.1391,3816.0,3815.9,5.08883]
[1754592352168,42.1391,3816.0,3815.9,3.2078]
[1754592352479,42.38627952,3816.0,3815.9,3.2078]
[1754592353272,42.38626862,3816.0,3815.9,3.2078]
[1754592354176,42.38626862,3816.0,3815.9,3.5367]
[1754592354978,42.38626862,3816.0,3815.9,4.5648]
[1754592355280,42.38626862,3816.0,3815.9,5.0111]
[1754592355880,42.08586862,3816.0,3815.9,5.0111]
[1754592356076,42.38626862,3816.0,3815.9,3.5367]
[1754592356274,41.49436862,3816.0,3815.9,5.0111]
[1754592356479,41.80156862,3816.0,3815.9,5.0111]
[1754592357478,59.94996862,3816.0,3815.9,3.2078]
[1754592357682,1.21517,3815.6,3815.5,3.2078]
[1754592357883,2.26997,3815.6,3815.5,3.2078]
[1754592358180,2.51713862,3815.6,3815.5,3.5367]
[1754592358776,2.51713862,3815.6,3815.5,3.2078]
[1754592359175,2.27002,3815.3,3815.2,0.3289]
[1754592359483,1.7459,3815.2,3815.1,3.2078]
[1754592359884,42.5459,3815.2,3815.1,3.2078]
[1754592360102,60.4019,3815.2,3815.1,3.2078]
[1754592360279,60.64885267,3815.2,3815.1,3.2078]
[1754592360677,60.64885267,3815.2,3815.1,3.5367]
[1754592360979,60.64885267,3815.2,3815.1,3.2078]
[1754592361286,42.49245267,3815.2,3815.1,5.0111]
[1754592361586,42.2455,3815.2,3815.1,5.0111]
[1754592361786,41.0843,3815.2,3815.1,5.0111]
[1754592364580,40.8,3815.2,3815.1,5.0111]
[1754592366779,41.2472,3815.2,3815.1,5.0111]
[1754592367485,40.8,3815.2,3815.1,5.0111]
[1754592370886,0.9983,3815.7,3815.6,2.32737]
[1754592371083,18.8573,3816.1,3816.0,2.32732]
[1754592371395,42.5332576,3816.1,3816.0,2.32732]
[1754592371581,42.9804576,3816.1,3816.0,2.32732]
[1754592373490,42.2455,3816.1,3816.0,2.32732]
[1754592373792,42.2455,3816.1,3816.0,5.53512]
[1754592378489,41.4911,3816.1,3816.0,5.53512]
[1754592378802,42.2367,3816.1,3816.0,5.53512]
[1754592380692,42.5256,3816.1,3816.0,5.08232]
[1754592381002,42.5256,3816.1,3816.0,5.51972]
[1754592381290,42.2367,3816.1,3816.0,5.51972]
[1754592384798,1.7256,3816.1,3816.0,4.04372]
[1754592385199,42.5256,3816.1,3816.0,4.04372]
[1754592385500,42.5256,3816.1,3816.0,4.56122]
[1754592385688,42.5256,3816.1,3816.0,4.24722]
[1754592385891,42.5256,3816.1,3816.0,3.5197]
[1754592386093,42.5256,3816.1,3816.0,3.2078]
[1754592386998,42.5256,3816.1,3816.0,3.5197]
[1754592387399,42.5256,3816.1,3816.0,3.2078]
[1754592388303,42.5256,3816.1,3816.0,3.5197]
[1754592389505,42.77260803,3816.1,3816.0,3.5197]
[1754592391521,42.77260803,3816.1,3816.0,3.8337]
[1754592391706,42.77260803,3816.1,3816.0,4.0372]
[1754592392808,42.77260803,3816.1,3816.0,4.963]
[1754592393204,42.48370803,3816.1,3816.0,4.963]
[1754592393813,42.2367,3816.1,3816.0,4.963]
[1754592394008,42.77297867,3816.1,3816.0,4.963]
[1754592394409,43.50645046,3816.1,3816.0,4.963]
[1754592394634,42.77297867,3816.1,3816.0,4.963]
[1754592394809,43.50658506,3816.1,3816.0,4.963]
[1754592396108,42.89798506,3816.1,3816.0,4.963]
[1754592396308,41.04737867,3816.1,3816.0,4.963]
[1754592396814,41.47327867,3816.1,3816.0,4.963]
[1754592397707,41.04737867,3816.1,3816.0,4.963]
[1754592397917,40.8,3816.1,3816.0,4.963]
[1754592398214,41.04749887,3816.1,3816.0,4.963]
[1754592398717,41.47339887,3816.1,3816.0,4.963]
[1754592402016,41.79309887,3816.1,3816.0,4.963]
[1754592402919,41.5456,3816.1,3816.0,4.963]
[1754592407519,41.8232,3816.1,3816.0,4.963]
[1754592408109,41.5456,3816.1,3816.0,4.2116]
[1754592408315,60.39295257,3816.1,3816.0,3.5197]
[1754592409820,60.64063224,3816.1,3816.0,3.5197]
[1754592410221,60.64063224,3816.1,3816.0,4.0243]